Cogmind - Beta 13 @@@ ROGUE MODE // 2024.04.14 @ 21:33:23 Player: Taterpoppsyco Result: Destroyed by G-34 Mercenary with Small Laser Performance ------------- Evolutions (0) 0 Regions Visited (2) 400 Robots Destroyed (21) 105 Value Destroyed (386) 386 Prototype IDs (0) 0 Alien Tech Used (0) 0 Bonus (0) 0 TOTAL SCORE: 891 Bonus ------- None Cogmind --------- Core Integrity 0/250 Matter 273/300 Energy 250/250 System Corruption 0% Temperature Cool (6) Movement Treading (160) Location -10/Mines Parts ------- > --- POWER (1) -------- Ion Engine > --- PROPULSION (2) --- Improved Treads > --- UTILITY (2) ------ Visual Processing Unit Utility Shielding > --- WEAPON (2) ------- Datajack > --- INVENTORY (5) ---- High-capacity Battery (250) Light Cannon Plasma Cutter Peak State ------------ > --- POWER ------------ Light Ion Engine > --- PROPULSION ------- Improved Treads Improved Treads > --- UTILITY ---------- High-capacity Battery Visual Processing Unit > --- WEAPON ----------- Autogun Autogun > --- INVENTORY -------- Small Laser Assault Rifle Plasma Cutter Plasma Cutter [Rating: 12] Favorites ----------- Power Light Ion Engine Engine Light Ion Engine Propulsion Improved Treads Treads Improved Treads Wheel Wheel Hover Unit Hover Unit Flight Unit Flight Unit Utility Visual Processing Unit Storage High-capacity Battery Processor Visual Processing Unit Protection Utility Shielding Weapon Autogun Energy Gun Small Laser Ballistic Gun Autogun Ballistic Cannon Light Cannon Launcher Grenade Launcher Special Weapon Mining Laser Special Melee Weapon Datajack Build | -11 -10 -10 ------- Run | Yrd Mat Min Slots Evolved . | . . . Power . | . . . Propulsion . | . . . Utility . | . . . Weapon . | . . . Parts Attached 32 | 9 21 2 Power 3 | 2 1 . Engine 3 | 2 1 . Core . | . . . Reactor . | . . . Propulsion 8 | 2 6 . Treads 2 | . 2 . Leg . | . . . Wheel 3 | 2 1 . Hover 2 | . 2 . Flight 1 | . 1 . Utility 6 | . 6 . Device . | . . . Storage 3 | . 3 . Processor 2 | . 2 . Hackware . | . . . Protection 1 | . 1 . Artifact . | . . . Weapon 15 | 5 8 2 Energy Gun 6 | 3 3 . Energy Cannon . | . . . Ballistic Gun 4 | 1 3 . Ballistic Cannon 1 | . 1 . Launcher 1 | . 1 . Special Weapon 2 | 1 . 1 Impact Weapon . | . . . Slashing Weapon . | . . . Piercing Weapon . | . . . Special Melee Weapon 1 | . . 1 Unidentified Prototypes . | . . . Parts Lost 4 | . 3 1 Power 1 | . 1 . Propulsion 1 | . 1 . Utility . | . . . Weapon 2 | . 1 1 Highest Loss Streak 3 | . 3 1 To Critical Strikes . | . . . Average Slot Usage (%) 93 | . 94 85 Engine 13 | . 13 14 Treads 16 | . 16 14 Wheel 6 | . 7 . Hover 3 | . 3 . Storage 9 | . 9 . Processor 13 | . 13 14 Protection 2 | . 2 14 Energy Gun 7 | . 7 . Ballistic Gun 18 | . 18 7 Naked Turns . | . . . Heaviest Build 13 | 6 13 10 Greatest Support 46 | 20 46 23 Greatest Overweight (x) 1 | . 1 . Average Overweight (x) . | . . . Largest Inventory Capacity 5 | 5 5 5 Average Capacity 5 | 5 5 5 Most Carried 5 | 5 5 3 Average Carried 3 | 2 3 2 Final Capacity 5 | 5 5 5 Final Carried 4 | 3 4 3 Class Distribution -------------------- 100% | Mutant Dominant Class ---------------- Mutant | -10/Materials Mutant | -10/Mines Resources | -11 -10 -10 ----------- Run | Yrd Mat Min Matter Collected 559 | 295 264 . Remotely . | . . . Salvage Created 558 | 154 404 . Parts 46 | 14 32 . Haulers Intercepted . | . . . Recyclers Shooed . | . . . Parts Field Recycled . | . . . Retrieved Matter . | . . . Parts Self-Destructed . | . . . Prevented . | . . . Kills | -11 -10 -10 ------- Run | Yrd Mat Min Combat Hostiles Destroyed 10 | 1 9 . Guns 8 | 1 7 . AOE 2 | . 2 . Classes Destroyed 5 | 3 2 . Worker 2 | 1 1 . Tunneler 6 | 4 2 . Watcher 3 | . 3 . Swarmer 3 | . 3 . Grunt 7 | 1 6 . Best Kill Streak 6 | 4 6 . Combat Bots Only 4 | 1 4 . Max Kills in Single Turn 2 | 1 2 . Gunslinging . | . . . Exploded 2 | . 2 . Melee . | . . . Uniques/NPCs Destroyed . | . . . Combat | -11 -10 -10 -------- Run | Yrd Mat Min Hostile Shots Fired 93 | 9 62 22 Missed 23 | 3 16 4 Damage Taken 923 | 66 595 262 Core 260 | 23 137 100 Absorbed by Shields . | . . . Core Remaining (%) 90 | 90 . . Volleys Fired 82 | 35 43 4 Largest 2 | 2 2 1 Hottest 100 | 100 63 23 Shots Fired 123 | 48 71 4 Gun 101 | 32 66 3 Cannon 4 | . 4 . Launcher 1 | . 1 . Special 17 | 16 . 1 Kinetic 59 | 5 51 3 Thermal 46 | 43 2 1 Explosive 1 | . 1 . Electromagnetic 17 | . 17 . Robot Hit Streak 5 | 5 5 2 Robot Miss Streak 6 | 4 6 1 Penetration Max . | . . . Secondary Targets 2 | . 2 . Max Gunslinging Chain 1 | . 1 . Shots Hit Robots 60 | 17 38 5 Core Hits 26 | 7 19 . Critical Kills . | . . . Critical Parts Destroyed 1 | . 1 . Critical Strikes 2 | . 2 . Destroy 1 | . 1 . Blast 1 | . 1 . Melee Attacks 2 | . . 2 Impact . | . . . Slashing . | . . . Piercing . | . . . Sneak Attacks . | . . . Combat Hostiles . | . . . Follow-up Attacks . | . . . Damage Inflicted 983 | 196 746 41 Guns 757 | 196 530 31 Cannons 57 | . 57 . Explosions 159 | . 159 . Melee . | . . . Ramming . | . . . Kinetic 485 | 35 419 31 Thermal 183 | 161 12 10 Explosive 159 | . 159 . Electromagnetic 156 | . 156 . Impact . | . . . Slashing . | . . . Piercing . | . . . Highest Corruption . | . . . Average Corruption . | . . . Corruption Purged . | . . . Corruption Blocked . | . . . Overload Shots . | . . . Overflow Damage 12 | . 12 . Projectiles . | . . . Explosions 12 | . 12 . Melee . | . . . Knockbacks . | . . . Impact . | . . . Kinetic . | . . . Secondary . | . . . Self-Inflicted Damage . | . . . Shots . | . . . Rammed . | . . . Targets Rammed . | . . . Kicked . | . . . Crushed . | . . . Highest Temperature 252 | 252 211 12 Average Temperature 84 | 99 67 5 Received Heat Transfer 487 | 36 336 115 Effects 1 | 1 . . Interference 1 | 1 . . Siege Activations . | . . . Robots Corrupted . | . . . Combat Hostiles . | . . . Parts Fried . | . . . Impact Corruptions . | . . . Robots Melted . | . . . Combat Hostiles . | . . . Parts Melted . | . . . Heat Transferred 437 | 375 25 37 Parts Sabotaged . | . . . Parts Stolen . | . . . Parts Stripped . | . . . Power Chain Reactions . | . . . Alert | -11 -10 -10 ------- Run | Yrd Mat Min Peak Influence 155 | 45 155 70 Initial 55 | . 29 55 Average 61 | 27 72 64 Maximum Alert Level . | . . . Low Security (%) 100 | 100 100 100 Level 1 . | . . . Level 2 . | . . . Level 3 . | . . . Level 4 . | . . . Level 5 . | . . . High Security . | . . . Max Security . | . . . Squads Dispatched 1 | . 1 . Investigation . | . . . Extermination . | . . . Reinforcement 1 | . 1 . Assault . | . . . Garrison . | . . . Intercept . | . . . Searches Triggered . | . . . Construction Impeded . | . . . Haulers Reinforced . | . . . Active Scanning Responses . | . . . Cargo Convoy Interrupts . | . . . Stealth | -11 -10 -10 --------- Run | Yrd Mat Min Distress Signals . | . . . Communications Jammed . | . . . Distress Signals . | . . . Times Spotted 28 | 1 14 13 Peak Tracking Total 22 | 1 4 22 Tactical Retreats . | . . . Traps | -11 -10 -10 ------- Run | Yrd Mat Min Traps Triggered . | . . . Indirectly . | . . . Trap Hack Attempts . | . . . Triggered . | . . . Disarmed . | . . . Reprogrammed . | . . . Reused . | . . . Traps Extracted . | . . . Installed . | . . . Triggered . | . . . Machines | -11 -10 -10 ---------- Run | Yrd Mat Min Machines Disabled . | . . . Max in Single Turn . | . . . Machines Repaired . | . . . Machines Dismantled . | . . . Machines Sabotaged . | . . . Overloaded Fab Kills . | . . . Hacking | -11 -10 -10 --------- Run | Yrd Mat Min Machines Accessed 1 | . 1 . Terminals . | . . . Fabricators . | . . . Repair Stations . | . . . Recycling Units 1 | . 1 . Scanalyzers . | . . . Garrison Access . | . . . Total Hacks 5 | . 5 . Successful 5 | . 5 . Failed . | . . . Catastrophic . | . . . Database Lockouts . | . . . Manual . | . . . Terminals . | . . . Fabricators . | . . . Repair Stations . | . . . Recycling Units 5 | . 5 . Scanalyzers . | . . . Garrison Access . | . . . Terminal Hacks . | . . . Fabricator Hacks . | . . . Repair Station Hacks . | . . . Recycling Unit Hacks 5 | . 5 . Recycle Component 2 | . 2 . Process 1 | . 1 . Retrieve Matter 2 | . 2 . Scanalyzer . | . . . Garrison Access Hacks . | . . . Unauthorized Hacks . | . . . Terminals . | . . . Fabricators . | . . . Repair Stations . | . . . Recycling Units . | . . . Scanalyzers . | . . . Garrison Access . | . . . Data Cores Recovered . | . . . Used . | . . . Hacking Detections . | . . . Full Trace Events . | . . . Feedback Events . | . . . Feedback Blocked . | . . . Robot Schematics Acquired . | . . . Robots Built . | . . . Authchips . | . . . Time . | . . . Total Robot Build Rating . | . . . Part Schematics Acquired . | . . . Parts Built . | . . . Authchips . | . . . Time . | . . . Total Part Build Rating . | . . . Parts Repaired . | . . . Time . | . . . Parts Recycled 2 | . 2 . Recycled Matter 150 | . 150 . Retrieved Matter 150 | . 150 . Retrieved Components . | . . . Parts Scanalyzed . | . . . Part Schematics Acquired . | . . . Parts Damaged . | . . . Bothacking | -11 -10 -10 ------------ Run | Yrd Mat Min Used RIF Installer . | . . . Robots Hacked 2 | . . 2 Non-combat . | . . . Combat 2 | . . 2 Robot Hacks Applied 2 | . . 2 parse_system 2 | . . 2 Relay Couplers Released . | . . . Fabnet Peak Effective % . | . . . Robots Rewired . | . . . Allies Hacked . | . . . Hacks Repelled . | . . . Allies | -11 -10 -10 -------- Run | Yrd Mat Min Total Allies . | . . . Largest Group . | . . . Highest-Rated Group . | . . . Highest-Rated Ally . | . . . Total Orders . | . . . Ally Attacks . | . . . Total Damage . | . . . Kills . | . . . Allies Corrupted . | . . . Allies Melted . | . . . Intel | -11 -10 -10 ------- Run | Yrd Mat Min Robot Analysis Total . | . . . Derelict Logs Recovered . | . . . Drone Launches . | . . . Drone Recoveries . | . . . Exploration | -11 -10 -10 ------------- Run | Yrd Mat Min Turns Passed 983 | 244 723 16 Spaces Moved 582 | 160 421 1 Core 64 | 64 . . Treads 217 | . 216 1 Legs . | . . . Wheels 248 | 96 152 . Hover 53 | . 53 . Flight . | . . . Fastest Speed 50 | 50 80 160 Average Speed 112 | 68 129 160 Slowest Speed 160 | 80 160 160 Overloaded Moves . | . . . Propulsion Burnouts . | . . . Robots Hopped . | . . . Cave-ins Triggered . | . . . Exploration Rate (%) 26 | 7 71 2 Regions Visited 2 Branch Regions 1 Pre-discovered Areas . | . . . Known Exits Taken . | . . . Unknown Exits Taken 2 | 1 1 . Scrap Searched . | . . . Spaces Dug 11 | 11 . . Terrain Destroyed 17 | 11 6 . Melee . | . . . Projectile 11 | 11 . . AOE 6 | . 6 . Terrain Rammed . | . . . Walls Destroyed . | . . . Machines Disabled . | . . . Actions | -11 -10 -10 --------- Run | Yrd Mat Min Total 774 | 215 549 10 Wait 20 | . 20 . Move 580 | 159 420 1 Hop . | . . . Pick Up 30 | 9 21 . Fast Attach . | . . . Attach 31 | 8 21 2 Detach 13 | 2 10 1 Swap 1 | 1 . . Drop 15 | 1 14 . Fire 82 | 35 43 4 Melee 2 | . . 2 Ram . | . . . Kick . | . . . Crush . | . . . Escape Stasis . | . . . Rewire . | . . . Trap . | . . . Miscellaneous . | . . . Route ------- -11/Scrapyard -10/Materials (discovered 3 exits: [*Mat] / [*Min x2]) -10/Mines History --------- Turn | Location | Event 2 | -11/Scrapyard | Met Revision 17 66 | -11/Scrapyard | Discovered new exit (range 8) 245 | -11/Scrapyard | Entered Materials 260 | -10/Materials | Discovered new exit (range 16) 306 | -10/Materials | Build established: Mutant 404 | -10/Materials | Discovered new exit (range 4) 893 | -10/Materials | Core integrity fell below 50% 918 | -10/Materials | Discovered new exit (range 11) 933 | -10/Materials | Lost 3 parts (1p1n1w) 968 | -10/Materials | Entered Mines 969 | -10/Mines | Assembled infested the area 974 | -10/Mines | Assisted by a Guerilla fighting off Assembled 980 | -10/Mines | Core integrity fell below 20% 984 | -10/Mines | Destroyed by G-34 Mercenary with Small Laser Last Messages --------------- A derelict emerges from the shadows: "You need to get out of here! I've been tracking a group of Assembled to figure out where they're coming from, and they're closing on this area, come on!" Autogun destroyed. Jacked G-47 Trooper... Right-click on available options for more info. Keyboard players can use Shift-a~z. >>parse_system Reading system data... G-47 Trooper destroyed. G-34 Mercenary knocked back. Jacked G-34 Mercenary... >>parse_system Reading system data... YP-Z5G(h) suffers critical hit (Destroy). HV Slug penetrates as-42466. as-42466 suffers critical hit (Destroy). as-49338 destroyed. G-34 Mercenary suffers critical hit (Destroy). G-34 Mercenary knocked back. Map ----- +----------------------------------------------------+ | | | | | | | | | | | | | | | | | | | | | | | ???????????????????????????????????????? | | ???????????????????????????????????????? | | ???????????????????????????????????????? | | ???????????????????????????????????????? | | ???????????????????????????????????????? | | ???????????????????????????????????????? | | ???????????????????????????????????????? | | ???????????????????????????????????????? | | ???????????????????????????????????????? | | ???????????????????????????????????????? | | ?????????????????????????####??????????? | | ????????????????????????## ##?????????? | | ???????????????????????## % #?????????? | | ???????????????????????# #?????????? | | ???????????????????????#%@g #?????????? | | ???????????????????? aa%! ##?????????? | | ???????????????? ## #a%h##??????????? | | ???????????? #????#?###%#???????????? | | ????????? ?????????????#a#???????????? | | ?????????????????????????#a#???????????? | | ?????????????????????????# #???????????? | | ????????????????????????? ???????????? | | ?????????????????????????###???????????? | | ???????????????????????????????????????? | | ???????????????????????????????????????? | | ???????????????????????????????????????? | | ???????????????????????????????????????? | | ???????????????????????????????????????? | | ???????????????????????????????????????? | | ???????????????????????????????????????? | | ???????????????????????????????????????? | | ???????????????????????????????????????? | | ???????????????????????????????????????? | | ???????????????????????????????????????? | | ???????????????????????????????????????? | | ???????????????????????????????????????? | | ???????????????????????????????????????? | | ???????????????????????????????????????? | | ???????????????????????????????????????? | +----------------------------------------------------+ Best States ------------- Heat Dissipation 25 Energy Generation 10 Energy Capacity 375 Matter Stores 300 Matter Capacity 350 Sight Range 18 Terrain Scan Density 10 Utility Shielding 33 Evasion (%) 50 Recoil Reduction 2 Item Schematics ----------------- None Robot Schematics ------------------ None Fabricated ------------ Nothing Alien Tech Used ----------------- None Achievements -------------- Hunted Storm Trooper Challenges ------------ None Game ------ Seed DataSystemGenerator Manual? 0 Play Time 00:18:42 Cumulative 0.6 hours Start 2024.04.14 @ 21:15:32 End 2024.04.14 @ 21:33:23 Sessions 1 Manual Loads 0 Difficulty Rogue Special Mode None Game No. 2 Rogue 2 Adventurer 0 Explorer 0 Win Type - Total 0 Types 0/0/0/0/0/0/0/0/0 Lore% 0 Gallery% 3 Achievement% 1 Wizard Run 0 Options --------- Layout 2 ASCII 0 Keyboard 0 Movement Mouse Keybinds 0 Fullscreen 1 Font 24/Smallcaps Map View 76x44 Zoom Use 0% Tactical HUD 0 Map Filters NONE Filters NONE Steam 1 RUN: a6e20976-4790-4af1-bdbb-96dc3839ea86